fUSD/lending_fUSD_20240519
["ID","MTS","AMOUNT","RATE_DAILY","PERIOD"]
[327450898,1716078681738,-500.0,0.00029041,2]
[327450899,1716078681748,-2483.23,0.00029041,2]
[327450900,1716078681758,-634.11,0.00029041,2]
[327450901,1716078681769,-1053.73,0.00029041,2]
[327450902,1716078681780,-151.0,0.00029041,7]
[327450903,1716078681790,-1080.2,0.00029041,2]
[327450904,1716078681799,-500.0,0.00029041,2]
[327450905,1716078681811,-151.0,0.00029041,7]
[327450906,1716078681820,-4673.28,0.00029041,2]
[327450907,1716078681829,-500.0,0.00029041,2]
[327450908,1716078681838,-500.0,0.00029041,2]
[327450909,1716078681847,-1437.6,0.00029041,2]
[327450910,1716078681856,-500.0,0.00029041,2]
[327450911,1716078681865,-1159.59,0.00029041,2]
[327450912,1716078681874,-238.097877,0.00029041,7]
[327450913,1716078681884,-151.0,0.00029041,7]
[327450914,1716078681894,-500.0,0.00029041,2]
[327450915,1716078681903,-151.0,0.00029041,7]
[327450916,1716078681914,-627.84,0.00029041,2]
[327450917,1716078681924,-880.42,0.00029041,2]
[327450918,1716078681933,-1488.28,0.00029041,2]
[327450919,1716078681943,-1630.92,0.00029041,2]
[327450920,1716078681953,-9733.43,0.00029041,2]
[327450921,1716078681962,-500.0,0.00029041,2]
[327450922,1716078681971,-880.17,0.00029041,2]
[327450923,1716078681981,-2962.83,0.00029041,2]
[327450924,1716078681991,-349.286604,0.00029041,7]
[327450925,1716078682001,-500.0,0.00029041,2]
[327450926,1716078682012,-500.0,0.00029041,2]
[327450927,1716078682021,-716.13,0.00029041,2]
[327450928,1716078682031,-151.0,0.00029041,7]
[327450929,1716078682040,-768.84,0.00029041,2]
[327450930,1716078682050,-349.286604,0.00029041,7]
[327450931,1716078682059,-151.0,0.00029041,7]
[327450932,1716078682066,-1840.17,0.00029041,2]
[327450933,1716078682073,-986.7,0.00029041,2]
[327450934,1716078682080,-500.0,0.00029041,2]
[327450935,1716078682088,-1662.73,0.00029041,2]
[327450936,1716078682097,-4303.61,0.00029041,2]
[327450937,1716078682107,-631.36,0.00029041,2]
[327450938,1716078682116,-724.28,0.00029041,2]
[327450939,1716078682126,-151.0,0.00029041,7]
[327450940,1716078682135,-3000.96,0.00029041,2]
[327450941,1716078682144,-613.97,0.00029041,2]
[327450942,1716078682153,-504.46,0.00029041,2]
[327450943,1716078682163,-525.96,0.00029041,2]
[327450944,1716078682172,-151.0,0.00029041,7]
[327450945,1716078682182,-285.600972,0.00029041,7]
[327450946,1716078682191,-500.0,0.00029041,2]
[327450947,1716078682200,-3050.31,0.00029041,2]
[327450948,1716078682209,-2206.8,0.00029041,2]
[327450949,1716078682220,-3296.43,0.00029041,2]
[327450950,1716078682230,-3601.59,0.00029041,2]
[327450951,1716078682240,-285.600972,0.00029041,7]
[327450952,1716078682249,-3041.56,0.00029041,2]
[327450953,1716078682259,-523.16,0.00029041,2]
[327450954,1716078682269,-2275.09,0.00029041,2]
[327450955,1716078682282,-500.0,0.00029041,2]
[327450956,1716078682292,-3685.01,0.00029041,2]
[327450957,1716078682302,-1919.05,0.00029041,2]
[327450958,1716078682312,-750.61,0.00029041,2]
[327450959,1716078682322,-1988.81,0.00029041,2]
[327450960,1716078682332,-1219.88,0.00029041,2]
[327450961,1716078682342,-606.7,0.00029041,2]
[327450962,1716078682353,-417.967568,0.00029041,7]
[327450963,1716078682363,-500.0,0.00029041,2]
[327450964,1716078682374,-1878.81,0.00029041,2]
[327450965,1716078682384,-2176.0,0.00029041,2]
[327450966,1716078682394,-2585.42,0.00029041,2]
[327450967,1716078682406,-417.967568,0.00029041,7]
[327450968,1716078682416,-3682.41,0.00029041,2]
[327450969,1716078682429,-500.0,0.00029041,2]
[327450970,1716078682439,-738.69,0.00029041,2]
[327450971,1716078682448,-1679.77,0.00029041,2]
[327450972,1716078682457,-590.26932274,0.00029041,2]
[327450973,1716078682466,-500.0,0.00029041,2]
[327450974,1716078682476,-2986.43,0.00029041,2]
[327450975,1716078682484,-4242.79,0.00029041,2]
[327450976,1716078682494,-500.0,0.00029041,2]
[327450977,1716078682503,-500.0,0.00029041,2]
[327450978,1716078682512,-3057.4,0.00029041,2]
[327450979,1716078682521,-1055.1,0.00029041,2]
[327450980,1716078682531,-500.0,0.00029041,2]
[327450981,1716078682540,-5880.85,0.00029041,2]
[327450982,1716078682549,-1361.72,0.00029041,2]
[327450983,1716078682559,-2275.09,0.00029041,2]
[327450984,1716078682568,-567.25,0.00029041,2]
[327450985,1716078682577,-1546.63,0.00029041,2]
[327450986,1716078682587,-2234.1,0.00029041,2]
[327450987,1716078682596,-2444.03,0.00029041,2]
[327450988,1716078682605,-629.55,0.00029041,2]
[327450989,1716078682614,-500.0,0.00029041,2]
[327450990,1716078682623,-500.0,0.00029041,2]
[327450991,1716078682633,-500.0,0.00029041,2]
[327450992,1716078682642,-631.01,0.00029041,2]
[327450993,1716078682652,-1214.83,0.00029041,2]
[327450994,1716078682661,-751.01,0.00029041,2]
[327450995,1716078682670,-1907.53,0.00029041,2]
[327450996,1716078682679,-500.0,0.00029041,2]
[327450997,1716078682688,-2098.31,0.00029041,2]
[327450998,1716078682697,-823.01,0.00029041,2]
[327450999,1716078682706,-1155.69,0.00029041,2]
[327451000,1716078682715,-500.0,0.00029041,2]
[327451001,1716078682725,-598.87,0.00029041,2]
[327451002,1716078682735,-553.76,0.00029041,2]
[327451003,1716078682744,-513.61,0.00029041,2]
[327451004,1716078682754,-2141.74,0.00029041,2]
[327451005,1716078682763,-500.0,0.00029041,2]
[327451006,1716078682772,-916.74,0.00029041,2]
[327451007,1716078682782,-971.82,0.00029041,2]
[327451008,1716078682792,-2760.5,0.00029041,2]
[327451009,1716078682801,-1119.54,0.00029041,2]
[327451010,1716078682811,-500.0,0.00029041,2]
[327451011,1716078682820,-500.0,0.00029041,2]
[327451012,1716078682830,-2356.22,0.00029041,2]
[327451013,1716078682840,-500.0,0.00029041,2]
[327451014,1716078682849,-157.051909,0.00029148,14]
[327451015,1716078682860,-2440.20609874,0.00029201,2]
[327451016,1716078682869,-1000.0,0.00029284,15]
[327451017,1716078682880,-500.0,0.00029314,2]
[327451018,1716078682890,-500.0,0.00029314,2]
[327451019,1716078682899,-150.0,0.00029314,2]
[327451020,1716078682908,-681.95,0.00029315,2]
[327451021,1716078682918,-500.0,0.00029315,2]
[327451022,1716078682928,-500.0,0.00029315,2]
[327451023,1716078682938,-500.0,0.00029315,2]
[327451024,1716078682947,-500.0,0.00029315,2]
[327451025,1716078682957,-500.0,0.00029315,2]
[327451026,1716078682968,-500.0,0.00029315,2]
[327451027,1716078682978,-500.0,0.00029315,2]
[327451028,1716078682988,-500.0,0.00029315,2]
[327451029,1716078682997,-500.0,0.00029315,2]
[327451030,1716078683007,-500.0,0.00029315,2]
[327451031,1716078683017,-500.0,0.00029315,2]
[327451032,1716078683027,-505.93,0.00029315,2]
[327451033,1716078683037,-517.25,0.00029315,2]
[327451034,1716078683046,-500.0,0.00029315,2]
[327451035,1716078683055,-500.0,0.00029315,2]
[327451036,1716078683065,-500.0,0.00029315,2]
[327451037,1716078683074,-500.0,0.00029315,2]
[327451038,1716078683084,-500.0,0.00029315,2]
[327451039,1716078683094,-500.0,0.00029315,2]
[327451040,1716078683103,-500.0,0.00029315,2]
[327451041,1716078683112,-500.0,0.00029315,2]
[327451042,1716078683122,-500.0,0.00029315,2]
[327451043,1716078683132,-500.0,0.00029315,2]
[327451044,1716078683141,-500.0,0.00029315,2]
[327451045,1716078683150,-500.0,0.00029315,2]
[327451046,1716078683159,-733.98,0.00029315,2]
[327451047,1716078683169,-500.0,0.00029315,2]
[327451048,1716078683179,-573.95510937,0.00029315,2]
[327451049,1716078683188,-500.0,0.00029315,2]
[327451050,1716078683197,-500.0,0.00029315,2]
[327451051,1716078683207,-500.0,0.00029315,2]
[327451052,1716078683217,-151.0,0.00029315,7]
[327451053,1716078683227,-500.0,0.00029315,2]
[327451054,1716078683237,-722.95,0.00029315,2]
[327451055,1716078683247,-500.0,0.00029315,2]
[327451056,1716078683256,-1030.53,0.00029315,2]
[327451057,1716078683266,-502.13,0.00029315,2]
[327451058,1716078683276,-500.0,0.00029315,2]
[327451059,1716078683289,-500.0,0.00029315,2]
[327451060,1716078683299,-500.0,0.00029315,2]
[327451061,1716078683308,-500.0,0.00029315,2]
[327451062,1716078683318,-1044.26,0.00029315,2]
[327451063,1716078683328,-583.65,0.00029315,2]
[327451064,1716078683338,-648.82,0.00029315,2]
[327451065,1716078683347,-151.0,0.00029315,7]
[327451066,1716078683357,-574.36,0.00029315,2]
[327451067,1716078683371,-537.0,0.00029315,2]
[327451068,1716078683382,-500.0,0.00029315,2]
[327451069,1716078683391,-500.0,0.00029315,2]
[327451070,1716078683401,-500.0,0.00029315,2]
[327451071,1716078683410,-151.0,0.00029315,7]
[327451072,1716078683421,-500.0,0.00029315,2]
[327451073,1716078683431,-500.0,0.00029315,2]
[327451074,1716078683442,-182.771925,0.00029315,7]
[327451075,1716078683453,-500.0,0.00029315,2]
[327451076,1716078683464,-505.89,0.00029315,2]
[327451077,1716078683473,-737.65,0.00029315,2]
[327451078,1716078683483,-363.22462677,0.00029315,2]
[327451079,1716078683493,-500.0,0.00029315,2]
[327451080,1716078683502,-500.0,0.00029315,2]
[327451081,1716078683512,-500.0,0.00029315,2]
[327451082,1716078683521,-555.13262247,0.00029315,2]
[327451083,1716078683531,-500.0,0.00029315,2]
[327451084,1716078683541,-500.0,0.00029315,2]
[327451085,1716078683551,-577.98,0.00029315,2]
[327451086,1716078683560,-500.0,0.00029315,2]
[327451087,1716078683570,-500.0,0.00029315,2]
[327451088,1716078683579,-243.873149,0.00029315,7]
[327451089,1716078683589,-500.0,0.00029315,2]
[327451090,1716078683599,-151.0,0.00029315,7]
[327451091,1716078683608,-531.85,0.00029315,2]
[327451092,1716078683618,-500.0,0.00029315,2]
[327451093,1716078683628,-500.0,0.00029315,2]
[327451094,1716078683637,-630.47,0.00029315,2]
[327451095,1716078683647,-921.62,0.00029315,2]
[327451096,1716078683656,-598.64,0.00029315,2]
[327451097,1716078683666,-597.35,0.00029315,2]
[327451098,1716078683676,-500.0,0.00029315,2]
[327451099,1716078683686,-678.99,0.00029315,2]
[327451100,1716078683696,-500.0,0.00029315,2]
[327451101,1716078683706,-213.59660388,0.00029315,2]
[327451102,1716078683715,-1138.39,0.00029315,2]
[327451103,1716078683725,-596.25,0.00029315,2]
[327451104,1716078683734,-500.0,0.00029315,2]
[327451105,1716078683744,-500.0,0.00029315,2]
[327451106,1716078683753,-500.0,0.00029315,2]
[327451107,1716078683763,-827.83,0.00029315,2]
[327451108,1716078683773,-580.907871,0.00029315,7]
[327451109,1716078683782,-500.0,0.00029315,2]
[327451110,1716078683791,-1011.91,0.00029315,2]
[327451111,1716078683801,-890.31,0.00029315,2]
[327451112,1716078683811,-580.907871,0.00029315,7]
[327451113,1716078683820,-500.0,0.00029315,2]
[327451114,1716078683830,-500.0,0.00029315,2]
[327451115,1716078683839,-655.15,0.00029315,2]
[327451116,1716078683849,-500.0,0.00029315,2]
[327451117,1716078683858,-500.0,0.00029315,2]
[327451118,1716078683868,-672.45,0.00029315,2]
[327451119,1716078683877,-500.0,0.00029315,2]
[327451120,1716078683887,-500.0,0.00029315,2]
[327451121,1716078683896,-500.0,0.00029315,2]
[327451122,1716078683906,-500.67515906,0.00029315,2]
[327451123,1716078683915,-504.05,0.00029315,2]
[327451124,1716078683925,-689.56,0.00029315,2]
[327451125,1716078683934,-500.0,0.00029315,2]
[327451126,1716078683944,-611.06,0.00029315,2]
[327451127,1716078683954,-500.0,0.00029315,2]
[327451128,1716078683964,-500.0,0.00029315,2]
[327451129,1716078683973,-633.75,0.00029315,2]
[327451130,1716078683983,-500.0,0.00029315,2]
[327451131,1716078683992,-900.3,0.00029315,2]
[327451132,1716078684002,-500.0,0.00029315,2]
[327451133,1716078684012,-500.0,0.00029315,2]
[327451134,1716078684022,-523.89,0.00029315,2]
[327451135,1716078684032,-534.55,0.00029315,2]
[327451136,1716078684042,-569.19,0.00029315,2]
[327451137,1716078684051,-374.33102435,0.00029315,2]
[327451138,1716078684061,-500.0,0.00029315,2]
[327451139,1716078684071,-500.0,0.00029315,2]
[327451140,1716078684081,-500.0,0.00029315,2]
[327451141,1716078684091,-1239.6,0.00029315,2]
[327451142,1716078684101,-500.0,0.00029315,2]
[327451143,1716078684111,-637.24,0.00029315,2]
[327451144,1716078684121,-748.98,0.00029315,2]
[327451145,1716078684131,-151.0,0.00029315,7]
[327451146,1716078684142,-500.0,0.00029315,2]
[327451147,1716078684152,-527.94,0.00029315,2]
[327451148,1716078684163,-832.73,0.00029315,2]
[327451149,1716078684173,-500.0,0.00029315,2]
[327451150,1716078684183,-551.34,0.00029315,2]
[327451151,1716078684193,-500.0,0.00029315,2]
[327451152,1716078684203,-500.0,0.00029315,2]
[327451153,1716078684213,-183.1814281,0.00029315,2]
[327451154,1716078684223,-500.0,0.00029315,2]
[327451155,1716078684233,-500.0,0.00029315,2]
[327451156,1716078684243,-876.87,0.00029315,2]
[327451157,1716078684252,-500.0,0.00029315,2]
[327451158,1716078684262,-500.0,0.00029315,2]
[327451159,1716078684272,-812.13,0.00029315,2]
[327451160,1716078684287,-648.2,0.00029315,2]
[327451161,1716078684297,-500.0,0.00029315,2]
[327451162,1716078684307,-1583.82,0.00029315,2]
[327451163,1716078684316,-500.0,0.00029315,2]
[327451164,1716078684326,-1475.35,0.00029315,2]
[327451165,1716078684336,-895.82,0.00029315,2]
[327451166,1716078684527,-500.0,0.00029315,2]
[327451167,1716078684537,-670.03,0.00029315,2]
[327451168,1716078684547,-882.87,0.00029315,2]
[327451169,1716078684556,-500.0,0.00029315,2]
[327451170,1716078684566,-500.0,0.00029315,2]
[327451171,1716078684575,-316.88292709,0.00029315,2]
[327451172,1716078684585,-580.61,0.00029315,2]
[327451173,1716078684594,-545.97,0.00029315,2]
[327451174,1716078684604,-500.0,0.00029315,2]
[327451175,1716078684613,-151.0,0.00029315,7]
[327451176,1716078684623,-500.0,0.00029315,2]
[327451177,1716078684633,-500.0,0.00029315,2]
[327451178,1716078684643,-151.0,0.00029315,7]
[327451179,1716078684652,-500.0,0.00029315,2]
[327451180,1716078684661,-529.56,0.00029315,2]
[327451181,1716078684671,-500.0,0.00029315,2]
[327451182,1716078684680,-2239.3,0.00029315,2]
[327451183,1716078684689,-151.0,0.00029315,7]
[327451184,1716078684698,-500.0,0.00029315,2]
[327451185,1716078684708,-619.46,0.00029315,2]
[327451186,1716078684717,-823.42,0.00029315,2]
[327451187,1716078684727,-425.6,0.00029315,2]
[327451188,1716078684736,-500.0,0.00029315,2]
[327451189,1716078684746,-899.65,0.00029315,2]
[327451190,1716078684756,-151.0,0.00029315,7]
[327451191,1716078684765,-541.86,0.00029315,2]
[327451192,1716078684775,-716.2,0.00029315,2]
[327451193,1716078684785,-229.667264,0.00029315,7]
[327451194,1716078684794,-621.68,0.00029315,2]
[327451195,1716078684804,-151.0,0.00029315,7]
[327451196,1716078684813,-229.667264,0.00029315,7]
[327451197,1716078684823,-151.0,0.00029315,7]
[327451198,1716078684833,-1398.84,0.00029315,2]
[327451199,1716078684843,-669.33,0.00029315,2]
[327451200,1716078684852,-557.15,0.00029315,2]
[327451201,1716078684862,-500.0,0.00029315,2]
[327451202,1716078684871,-151.0,0.00029315,7]
[327451203,1716078684881,-735.95,0.00029315,2]
[327451204,1716078684890,-500.0,0.00029315,2]
[327451205,1716078684900,-669.0,0.00029315,2]
[327451206,1716078684909,-151.0,0.00029315,7]
[327451207,1716078684919,-753.99,0.00029315,2]
[327451208,1716078684928,-1923.63,0.00029315,2]
[327451209,1716078684938,-884.1,0.00029315,2]
[327451210,1716078684947,-500.0,0.00029315,2]
[327451211,1716078684957,-500.0,0.00029315,2]
[327451212,1716078684967,-656.37,0.00029315,2]
[327451213,1716078684976,-358.384419,0.00029315,7]
[327451214,1716078684986,-500.0,0.00029315,2]
[327451215,1716078684995,-358.384419,0.00029315,7]
[327451216,1716078685006,-928.15,0.00029315,2]
[327451217,1716078685016,-500.0,0.00029315,2]
[327451218,1716078685025,-806.75,0.00029315,2]
[327451219,1716078685035,-500.0,0.00029315,2]
[327451220,1716078685045,-685.35,0.00029315,2]
[327451221,1716078685054,-648.92,0.00029315,2]
[327451222,1716078685065,-320.44236322,0.00029315,2]
[327451223,1716078685074,-151.0,0.00029315,7]
[327451224,1716078685084,-500.0,0.00029315,2]
[327451225,1716078685094,-500.0,0.00029315,2]
[327451226,1716078685104,-151.0,0.00029315,7]
[327451227,1716078685114,-813.03,0.00029315,2]
[327451228,1716078685124,-614.14,0.00029315,2]
[327451229,1716078685134,-151.0,0.00029315,7]
[327451230,1716078685143,-791.44,0.00029315,2]
[327451231,1716078685153,-500.0,0.00029315,2]
[327451232,1716078685162,-151.0,0.00029315,7]
[327451233,1716078685172,-500.0,0.00029315,2]
[327451234,1716078685182,-1036.27,0.00029315,2]
[327451235,1716078685191,-693.8,0.00029315,2]
[327451236,1716078685201,-500.0,0.00029315,2]
[327451237,1716078685212,-1117.96,0.00029315,2]
[327451238,1716078685222,-774.17,0.00029315,2]
[327451239,1716078685231,-500.0,0.00029315,2]
[327451240,1716078685241,-436.77248744,0.00029315,2]
[327451241,1716078685251,-500.0,0.00029315,2]
[327451242,1716078685260,-554.73,0.00029315,2]
[327451243,1716078685270,-762.69,0.00029315,2]
[327451244,1716078685286,-500.0,0.00029315,2]
[327451245,1716078685305,-500.0,0.00029315,2]
[327451246,1716078685315,-500.0,0.00029315,2]
[327451247,1716078685325,-150.0,0.00029315,2]
[327451248,1716078685334,-1681.9,0.00029315,2]
[327451249,1716078685343,-1315.61,0.00029315,2]
[327451250,1716078685353,-518.65,0.00029315,2]
[327451251,1716078685362,-1008.21,0.00029315,2]
[327451252,1716078685372,-578.45,0.00029315,2]
[327451253,1716078685382,-500.0,0.00029315,2]
[327451254,1716078685391,-500.0,0.00029315,2]
[327451255,1716078685401,-665.8,0.00029315,2]
[327451256,1716078685411,-500.0,0.00029315,2]
[327451257,1716078685420,-512.39,0.00029315,2]
[327451258,1716078685430,-1367.82,0.00029315,2]
[327451259,1716078685439,-500.0,0.00029315,2]
[327451260,1716078685449,-966.33,0.00029315,2]
[327451261,1716078685459,-911.7,0.00029315,2]
[327451262,1716078685469,-957.33,0.00029315,2]
[327451263,1716078685478,-1131.82,0.00029315,2]
[327451264,1716078685488,-500.0,0.00029315,2]
[327451265,1716078685497,-1166.35,0.00029315,2]
[327451266,1716078685506,-500.0,0.00029315,2]
[327451267,1716078685516,-500.0,0.00029315,2]
[327451268,1716078685525,-862.14,0.00029315,2]
[327451269,1716078685535,-960.69,0.00029315,2]
[327451270,1716078685544,-522.68,0.00029315,2]
[327451271,1716078685554,-654.36,0.00029315,2]
[327451272,1716078685563,-500.0,0.00029315,2]
[327451273,1716078685572,-500.0,0.00029315,2]
[327451274,1716078685582,-500.0,0.00029315,2]
[327451275,1716078685591,-1298.17,0.00029315,2]
[327451276,1716078685601,-852.23,0.00029315,2]
[327451277,1716078685610,-500.0,0.00029315,2]
[327451278,1716078685619,-500.0,0.00029315,2]
[327451279,1716078685629,-641.81,0.00029315,2]
[327451280,1716078685638,-1049.32,0.00029315,2]
[327451281,1716078685647,-528.86,0.00029315,2]
[327451282,1716078685657,-559.84,0.00029315,2]
[327451283,1716078685666,-920.0,0.00029315,2]
[327451284,1716078685675,-500.0,0.00029315,2]
[327451285,1716078685685,-500.0,0.00029315,2]
[327451286,1716078685694,-500.0,0.00029315,2]
[327451287,1716078685703,-500.0,0.00029315,2]
[327451288,1716078685712,-1059.88,0.00029315,2]
[327451289,1716078685723,-1239.43,0.00029315,2]
[327451290,1716078685732,-500.0,0.00029315,2]
[327451291,1716078685742,-930.82,0.00029315,2]
[327451292,1716078685752,-896.18,0.00029315,2]
[327451293,1716078685762,-1090.58,0.00029315,2]
[327451294,1716078685771,-500.0,0.00029315,2]
[327451295,1716078685780,-501.2,0.00029315,2]
[327451296,1716078685789,-756.03,0.00029315,2]
[327451297,1716078685799,-3708.29,0.00029315,2]
[327451298,1716078685808,-568.47,0.00029315,2]
[327451299,1716078685818,-634.45,0.00029315,2]
[327451300,1716078685827,-669.45,0.00029315,2]
[327451301,1716078685836,-640.29,0.00029315,2]
[327451302,1716078685846,-1188.88,0.00029315,2]
[327451303,1716078685855,-1706.37,0.00029315,2]
[327451304,1716078685865,-501.03,0.00029315,2]
[327451305,1716078685876,-500.0,0.00029315,2]
[327451306,1716078685885,-604.36,0.00029315,2]
[327451307,1716078685895,-18503.15,0.00029315,2]
[327451308,1716078685904,-500.0,0.00029315,2]
[327451309,1716078685913,-3042.71,0.00029315,2]
[327451310,1716078685923,-918.3,0.00029315,2]
[327451311,1716078685932,-673.49,0.00029315,2]
[327451312,1716078685942,-500.0,0.00029315,2]
[327451313,1716078685951,-1478.1,0.00029315,2]
[327451314,1716078685960,-563.24,0.00029315,2]
[327451315,1716078685971,-1236.25,0.00029315,2]
[327451316,1716078685980,-6353.16,0.00029315,2]
[327451317,1716078685989,-500.0,0.00029315,2]
[327451318,1716078685998,-858.51,0.00029315,2]
[327451319,1716078686008,-500.0,0.00029315,2]
[327451320,1716078686018,-1637.74,0.00029315,2]
[327451321,1716078686027,-2093.82,0.00029315,2]
[327451322,1716078686037,-1213.21,0.00029315,2]
[327451323,1716078686046,-1033.3,0.00029315,2]
[327451324,1716078686055,-837.96,0.00029315,2]
[327451325,1716078686064,-649.63,0.00029315,2]
[327451326,1716078686074,-6393.72,0.00029315,2]
[327451327,1716078686083,-1055.23,0.00029315,2]
[327451328,1716078686093,-1059.23,0.00029315,2]
[327451329,1716078686102,-1196.2,0.00029315,2]
[327451330,1716078686112,-13606.2,0.00029315,2]
[327451331,1716078686121,-892.42,0.00029315,2]
[327451332,1716078686131,-9049.33,0.00029315,2]
[327451333,1716078686140,-500.0,0.00029315,2]
[327451334,1716078686150,-1312.43,0.00029315,2]
[327451335,1716078686159,-686.8,0.00029315,2]
[327451336,1716078686169,-929.49,0.00029315,2]
[327451337,1716078686178,-500.0,0.00029315,2]
[327451338,1716078686187,-1939.3,0.00029315,2]
[327451339,1716078686197,-743.66,0.00029315,2]
[327451340,1716078686207,-500.0,0.00029315,2]
[327451341,1716078686216,-2013.02,0.00029315,2]
[327451342,1716078686226,-1030.41,0.00029315,2]
[327451343,1716078686235,-500.0,0.00029315,2]
[327451344,1716078686245,-1781.24,0.00029315,2]
[327451345,1716078686254,-500.0,0.00029315,2]
[327451346,1716078686264,-784.58,0.00029315,2]
[327451347,1716078686273,-1095.5,0.00029315,2]
[327451348,1716078686287,-500.0,0.00029315,2]
[327451349,1716078686296,-675.78,0.00029315,2]
[327451350,1716078686305,-151.0,0.00029315,7]
[327451351,1716078686315,-5578.21,0.00029315,2]
[327451352,1716078686324,-492.090068,0.00029315,7]
[327451353,1716078686333,-853.49,0.00029315,2]
[327451354,1716078686342,-1353.59,0.00029315,2]
[327451355,1716078686352,-4213.64,0.00029315,2]
[327451356,1716078686361,-492.090068,0.00029315,7]
[327451357,1716078686371,-151.0,0.00029315,7]
[327451358,1716078686382,-151.0,0.00029315,7]
[327451359,1716078686393,-613.16,0.00029315,2]
[327451360,1716078686404,-1183.02,0.00029315,2]
[327451361,1716078686416,-8319.89,0.00029315,2]
[327451362,1716078686427,-1523.68,0.00029315,2]
[327451363,1716078686436,-11263.28,0.00029315,2]
[327451364,1716078686446,-500.0,0.00029315,2]
[327451365,1716078686455,-687.5,0.00029315,2]
[327451366,1716078686464,-988.22,0.00029315,2]
[327451367,1716078686474,-500.0,0.00029315,2]
[327451368,1716078686484,-2530.3,0.00029315,2]
[327451369,1716078686494,-878.41,0.00029315,2]
[327451370,1716078686503,-11394.4,0.00029315,2]
[327451371,1716078686512,-1672.62,0.00029315,2]
[327451372,1716078686522,-500.0,0.00029315,2]
[327451373,1716078686532,-1326.615315,0.00029315,7]
[327451374,1716078686541,-803.29,0.00029315,2]
[327451375,1716078686551,-151.0,0.00029315,7]
[327451376,1716078686560,-1326.615315,0.00029315,7]
[327451377,1716078686569,-1311.7,0.00029315,2]
[327451378,1716078686578,-7614.15,0.00029315,2]
[327451379,1716078686588,-1307.43,0.00029315,2]
[327451380,1716078686599,-500.0,0.00029315,2]
[327451381,1716078686610,-1045.39,0.00029315,2]
[327451382,1716078686620,-3075.12,0.00029315,2]
[327451383,1716078686630,-652.54,0.00029315,2]
[327451384,1716078686641,-151.0,0.00029315,7]
[327451385,1716078686651,-863.6,0.00029315,2]
[327451386,1716078686661,-500.0,0.00029315,2]
[327451387,1716078686670,-151.0,0.00029315,7]
[327451388,1716078686680,-500.0,0.00029315,2]
[327451389,1716078686689,-1831.66,0.00029315,2]
[327451390,1716078686700,-1329.27,0.00029315,2]
[327451391,1716078686709,-675.65,0.00029315,2]
[327451392,1716078686719,-12287.87,0.00029315,2]
[327451393,1716078686728,-1113.15,0.00029315,2]
[327451394,1716078686738,-500.0,0.00029315,2]
[327451395,1716078686749,-2444.57,0.00029315,2]
[327451396,1716078686758,-2423.7,0.00029315,2]
[327451397,1716078686768,-690.97,0.00029315,2]